bitfinex-derivatives/quotes_SOLF0:USTF0_20250626
["timestamp","ask_amount","ask_price","bid_price","bid_amount"]
[1750912324825,41.4087,145.51,145.48,6.8699]
[1750912325438,41.4087,145.51,145.47,6.8704]
[1750912325829,6.8692,145.5,145.44,133.15292518]
[1750912326936,10.27132518,145.5,145.44,129.7508]
[1750912327437,10.27132518,145.5,145.45,6.8713]
[1750912327739,6.8696,145.49,145.45,6.8713]
[1750912328434,6.8696,145.49,145.44,129.7508]
[1750912328435,10.27132518,145.5,145.46,6.871]
[1750912329134,6.8696,145.49,145.45,6.8713]
[1750912330040,10.27142518,145.5,145.46,6.871]
[1750912330340,3.40212518,145.5,145.46,6.871]
[1750912331531,6.8696,145.49,145.46,6.871]
[1750912331841,3.40212518,145.5,145.44,2.3949]
[1750912332134,3.40212518,145.5,145.42,128.40212518]
[1750912332528,6.8702,145.48,145.43,6.872]
[1750912332730,34.54,145.47,145.42,128.40212518]
[1750912333532,41.4105,145.47,145.44,6.8716]
[1750912333933,34.54,145.47,145.42,128.40212518]
[1750912334134,34.54,145.47,145.4,2.2453]
[1750912334638,34.54,145.47,145.42,6.8728]
[1750912335544,6.8718,145.45,145.41,6.8732]
[1750912337141,6.8712,145.46,145.42,6.8727]
[1750912337337,34.54,145.47,145.42,6.8727]
[1750912338644,6.8715,145.45,145.42,6.8727]
[1750912339443,6.8713,145.46,145.42,6.8727]
[1750912343246,6.8715,145.45,145.42,6.8727]
[1750912344051,6.8715,145.45,145.41,6.8731]
[1750912344746,6.8719,145.44,145.4,9.119]
[1750912349348,6.8724,145.43,145.4,9.119]
[1750912351552,37.98212518,145.43,145.38,8.58215656]
[1750912351751,37.98212518,145.43,145.37,125.0]
[1750912351943,37.98212518,145.43,145.36,168.12215656]
[1750912352556,34.58,145.43,145.38,8.58215656]
[1750912353058,34.58,145.43,145.38,15.87295656]
[1750912353255,34.58,145.43,145.41,6.8733]
[1750912355348,34.58,145.43,145.42,6.8729]
[1750912356959,39.46938042,145.46,145.44,6.8718]
[1750912357157,34.58,145.46,145.41,11.98428174]
[1750912357352,34.58,145.46,145.41,136.98428174]
[1750912358460,34.58,145.46,145.41,133.58215656]
[1750912358959,34.58,145.46,145.41,125.0]
[1750912359660,8.29881586,145.45,145.41,125.0]
[1750912359861,7.81618757,145.45,145.41,125.0]
[1750912360256,6.8722,145.44,145.41,125.0]
[1750912360453,4.89650371,145.43,145.41,125.0]
[1750912360653,11.76920371,145.43,145.39,6.874]
[1750912360853,34.58,145.42,145.37,8.58215656]
[1750912361855,34.58,145.42,145.38,6.8746]
[1750912362054,3.40212518,145.41,145.37,8.58215656]
[1750912362462,10.27552518,145.41,145.37,15.45705656]
[1750912362760,3.40212518,145.41,145.37,8.58215656]
[1750912362956,3.40212518,145.41,145.38,6.8747]
[1750912363163,3.40212518,145.39,145.31,12.82685636]
[1750912363357,3.40212518,145.32,145.25,6.8136]
[1750912363562,41.4582,145.31,145.26,6.8801]
[1750912363763,41.4582,145.31,145.25,6.8136]
[1750912363764,34.58,145.31,145.25,6.8136]
[1750912364164,34.58,145.31,145.25,13.6944]
[1750912364467,34.58,145.31,145.25,6.8136]
[1750912365060,34.58,145.31,145.25,13.6941]
[1750912365261,34.58,145.31,145.25,6.8136]
[1750912365664,34.58,145.31,145.26,6.8804]
[1750912365962,34.58,145.31,145.25,6.8136]
[1750912366763,3.40212518,145.34,145.27,3.40212518]
[1750912366954,34.58,145.34,145.32,6.8776]
[1750912367557,34.58,145.34,145.33,6.8771]
[1750912368262,37.98212518,145.37,145.34,6.8763]
[1750912368462,37.98212518,145.37,145.29,128.40212518]
[1750912369473,37.98212518,145.37,145.34,6.8763]
[1750912369771,37.98212518,145.37,145.29,128.40212518]
[1750912369971,37.98212518,145.37,145.34,6.8764]
[1750912370368,34.58,145.37,145.29,128.40212518]
[1750912370576,34.58,145.37,145.35,6.8759]
[1750912370972,34.58,145.37,145.29,128.40212518]
[1750912371274,34.58,145.37,145.35,6.8761]
[1750912372278,34.58,145.37,145.29,125.0]
[1750912372476,34.58,145.37,145.3,3.40212518]
[1750912373876,34.58,145.37,145.33,6.8767]
[1750912374679,34.58,145.37,145.34,6.8765]
[1750912374978,10.27692518,145.38,145.34,6.8765]
[1750912375168,34.6,145.37,145.34,6.8765]
[1750912376672,34.6,145.37,145.33,6.8769]
[1750912381770,34.6,145.37,145.3,128.40212518]
[1750912381974,34.6,145.37,145.31,7.0777]
[1750912382175,34.6,145.37,145.35,6.8759]
[1750912382474,34.62,145.36,145.35,6.8759]
[1750912382981,34.62,145.38,145.32,3.40212518]
[1750912383182,34.62,145.38,145.32,128.40212518]
[1750912384286,34.62,145.38,145.36,6.8754]
[1750912385282,34.62,145.38,145.32,128.40212518]
[1750912385790,34.62,145.38,145.35,6.8759]
[1750912387189,41.4948,145.38,145.35,6.8759]
[1750912388388,34.62,145.38,145.35,6.8759]
[1750912389884,34.62,145.38,145.32,128.40212518]
[1750912390490,34.62,145.38,145.36,6.8755]
[1750912393195,34.62,145.38,145.32,128.40212518]
[1750912393495,34.62,145.38,145.32,136.91864847]
[1750912394091,34.62,145.38,145.36,6.8754]
[1750912395086,34.62,145.38,145.37,6.8752]
[1750912395600,34.62,145.38,145.32,136.91864847]
[1750912399099,34.62,145.38,145.35,6.8759]
[1750912399598,34.62,145.38,145.36,6.8754]
[1750912399897,34.62,145.38,145.32,128.40212518]
[1750912400195,34.62,145.38,145.36,6.8754]
[1750912400695,34.62,145.38,145.37,6.8752]
[1750912400891,34.62,145.38,145.32,128.40212518]
[1750912400892,628.38,145.41,145.34,3.40212518]
[1750912401198,34.62,145.43,145.36,3.40212518]
[1750912401403,41.4924,145.43,145.4,6.8737]
[1750912402499,34.62,145.43,145.42,6.8729]
[1750912403594,34.62,145.43,145.41,6.8731]
[1750912407195,34.62,145.43,145.42,6.8729]
[1750912407502,34.62,145.43,145.38,3.40212518]
[1750912407699,34.62,145.43,145.41,6.8731]
[1750912409304,34.62,145.43,145.42,6.8729]
[1750912410290,12.90874918,145.47,145.43,6.872]
[1750912410603,34.58,145.46,145.43,6.872]
[1750912411704,4.64635304,145.47,145.43,6.872]
[1750912411705,11.51715304,145.47,145.43,6.872]
[1750912411900,34.58,145.46,145.41,3.40212518]
[1750912412409,34.58,145.46,145.42,4.6763]
[1750912412704,34.58,145.49,145.46,6.8706]
[1750912413703,41.4496,145.49,145.46,6.8706]
[1750912415712,34.58,145.49,145.46,6.8706]
[1750912416502,41.4496,145.49,145.46,6.8706]
[1750912418706,6.8701,145.48,145.45,6.8713]
[1750912419002,34.58,145.49,145.45,6.8713]
[1750912419206,34.58,145.49,145.42,129.6763]
[1750912419605,34.58,145.49,145.43,3.40212518]
[1750912420010,34.58,145.49,145.47,6.8704]
[1750912421510,34.58,145.49,145.48,6.87]
[1750912421807,34.58,145.49,145.43,128.40212518]
[1750912422108,34.58,145.49,145.46,6.8707]
[1750912422310,34.58,145.49,145.43,128.40212518]
[1750912423511,34.58,145.49,145.47,6.8702]
[1750912424010,34.58,145.52,145.45,3.40212518]
[1750912424201,41.4484,145.52,145.45,128.40212518]
[1750912425607,6.8691,145.5,145.45,125.0]
[1750912425803,3.40212518,145.49,145.45,125.0]
[1750912426006,34.58,145.48,145.42,167.65842518]
[1750912426311,34.58,145.48,145.46,6.8708]
[1750912426813,34.58,145.48,145.44,3.40212518]
[1750912428618,34.58,145.48,145.47,6.8705]
[1750912429010,34.58,145.48,145.44,3.40212518]
[1750912429210,34.58,145.48,145.46,6.8708]
[1750912431514,34.58,145.48,145.42,167.65842518]
[1750912431908,34.58,145.48,145.42,176.17494847]
[1750912432110,44.85092518,145.51,145.47,6.8705]
[1750912432912,37.98212518,145.51,145.48,6.8699]
[1750912433124,34.58,145.51,145.46,3.40212518]
[1750912433313,9.62228404,145.54,145.46,125.0]
[1750912433620,34.58,145.58,145.5,3.39802085]
[1750912433819,34.58,145.57,145.5,3.39802085]
[1750912434011,34.58,145.57,145.55,6.8664]
[1750912434213,34.58,145.57,145.52,3.39802085]
[1750912434413,34.58,145.57,145.53,3.39544992]
[1750912434820,34.58,145.57,145.51,3.39544992]
[1750912435719,41.4461,145.57,145.53,6.8674]
[1750912437115,37.97544992,145.57,145.5,125.0]
[1750912437922,37.97544992,145.57,145.49,128.39544992]
[1750912438616,6.8664,145.56,145.53,6.8676]
[1750912438816,6.8664,145.56,145.49,128.39544992]
[1750912439018,37.97544992,145.57,145.49,128.39544992]
[1750912439220,37.97544992,145.57,145.52,6.8681]
[1750912440127,6.8667,145.55,145.51,6.8684]
[1750912440332,6.8667,145.55,145.49,128.39544992]
[1750912440628,37.97544992,145.57,145.49,128.39544992]
[1750912441230,37.97544992,145.57,145.52,6.8679]
[1750912441231,6.8664,145.56,145.52,6.8679]
[1750912442429,41.4459,145.57,145.53,6.8675]
[1750912444423,34.58,145.57,145.52,6.868]
[1750912444625,34.58,145.57,145.49,128.39544992]
[1750912445037,41.446,145.57,145.49,128.39544992]
[1750912445736,41.446,145.57,145.54,6.8672]
[1750912447043,34.58,145.57,145.54,6.8672]
[1750912447430,34.58,145.57,145.51,3.39544992]
[1750912447632,34.58,145.57,145.51,128.39544992]
[1750912447937,34.58,145.57,145.53,6.8673]
[1750912447938,41.4461,145.57,145.53,6.8673]
[1750912448138,34.58,145.57,145.51,128.39544992]
[1750912448538,41.4458,145.57,145.53,6.8674]
[1750912449536,6.8663,145.56,145.53,6.8674]
[1750912450042,34.58,145.57,145.53,6.8674]
[1750912450741,6.8671,145.55,145.51,135.26394992]
[1750912450946,13.08096073,145.56,145.48,5.85084992]
[1750912451136,4.72393387,145.55,145.48,5.85084992]
[1750912451449,6.8676,145.54,145.5,6.8688]
[1750912452031,6.868,145.53,145.49,6.8694]
[1750912452341,34.64,145.53,145.48,3.39544992]
[1750912452541,34.64,145.53,145.5,3.39544992]
[1750912452842,41.5064,145.56,145.52,6.8678]
[1750912453042,46.23177153,145.56,145.52,6.8678]
[1750912453244,34.64,145.56,145.5,3.39544992]
[1750912454138,34.64,145.56,145.54,6.8669]
[1750912454740,34.64,145.56,145.52,3.39544992]
[1750912456539,34.64,145.56,145.55,6.8667]
[1750912458645,44.90044992,145.59,145.55,6.8667]
[1750912459147,34.64,145.59,145.54,3.39544992]
[1750912459450,34.64,145.6,145.54,3.39544992]
[1750912459652,34.64,145.6,145.57,6.8655]
[1750912461452,41.5045,145.6,145.57,6.8655]
[1750912462951,41.5045,145.6,145.58,6.8652]
[1750912462952,34.64,145.6,145.58,6.8652]
[1750912463149,34.64,145.6,145.54,3.39544992]
[1750912463548,34.64,145.6,145.57,6.8657]
[1750912464156,34.64,145.6,145.58,6.8653]
[1750912464350,34.64,145.6,145.54,3.39544992]
[1750912464550,34.64,145.6,145.56,3.39544992]
[1750912465351,4.736393,145.62,145.59,6.8645]
[1750912465556,4.736393,145.62,145.56,3.39544992]
[1750912465950,11.600093,145.62,145.58,6.8653]
[1750912466254,4.736393,145.62,145.58,6.8653]
[1750912466563,628.3,145.63,145.56,3.39544992]
[1750912466960,635.1631,145.63,145.59,6.8645]
[1750912467157,41.5031,145.63,145.56,128.39544992]
[1750912467667,6.8635,145.62,145.56,128.39544992]
[1750912467863,42.78753536,145.63,145.56,128.39544992]
[1750912468271,6.8636,145.62,145.58,6.865]
[1750912469359,34.64,145.63,145.58,3.39544992]
[1750912469965,34.64,145.63,145.61,6.8636]
[1750912470768,6.8623,145.65,145.61,6.8636]
[1750912471168,3.39544992,145.64,145.58,125.0]
[1750912471370,3.39544992,145.64,145.57,129.6559]
[1750912472160,6.8633,145.63,145.57,129.6559]
[1750912472774,6.8633,145.63,145.59,6.8644]
[1750912473072,13.16152174,145.65,145.59,6.8644]
[1750912473276,8.15169641,145.65,145.59,6.8644]
[1750912473470,13.16152174,145.65,145.59,6.8644]
[1750912473772,6.8633,145.63,145.59,6.8644]
[1750912474372,6.8633,145.63,145.57,6.8657]
[1750912474373,3.39544992,145.63,145.57,6.8657]
[1750912474564,3.39544992,145.61,145.53,42.67494992]
[1750912474966,6.8647,145.6,145.56,6.8659]
[1750912476070,6.8649,145.59,145.56,6.8659]
[1750912476272,13.20453752,145.61,145.56,6.8659]
[1750912476467,6.8646,145.6,145.57,6.8657]
[1750912476975,6.8646,145.6,145.53,42.67494992]
[1750912477165,3.39544992,145.59,145.53,39.2795]
[1750912477363,8.42243278,145.59,145.53,39.2795]
[1750912477573,3.39544992,145.59,145.53,39.2795]
[1750912477768,3.39544992,145.57,145.52,2.4375]
[1750912478470,8.18280794,145.57,145.52,2.4375]
[1750912478672,8.18280794,145.57,145.54,6.8669]
[1750912478877,3.39544992,145.57,145.54,6.8669]
[1750912479175,15.03418368,145.57,145.54,6.8669]
[1750912479375,10.26144992,145.57,145.54,6.8669]
[1750912479878,3.39544992,145.57,145.55,6.8666]
[1750912480077,41.5655,145.58,145.55,6.8666]
[1750912480078,34.7,145.58,145.55,6.8666]
[1750912480977,39.47453076,145.58,145.55,6.8666]
[1750912481684,34.7,145.58,145.55,6.8666]
[1750912485885,34.7,145.58,145.56,6.8662]
[1750912486684,34.7,145.58,145.55,6.8665]
[1750912486986,34.7,145.58,145.52,127.4375]
[1750912487188,34.7,145.58,145.54,6.8668]
[1750912487684,41.5655,145.58,145.54,6.8668]
[1750912488186,39.69948335,145.58,145.55,6.8667]
[1750912489385,34.7,145.58,145.56,6.8661]
[1750912489592,34.7,145.58,145.52,2.4375]
[1750912489785,34.7,145.58,145.52,127.4375]
[1750912490087,34.7,145.58,145.55,6.8664]
[1750912490287,39.46216723,145.58,145.52,127.4375]
[1750912490790,39.46216723,145.58,145.56,6.8661]
[1750912491186,34.7,145.58,145.56,6.8661]
[1750912495292,39.71302776,145.58,145.56,6.8661]
[1750912496291,34.7,145.58,145.56,6.8661]
[1750912496489,41.5653,145.58,145.55,6.8665]
[1750912497484,34.7,145.58,145.55,6.8665]
[1750912498897,34.7,145.58,145.51,12.82685636]
[1750912499084,3.39828956,145.55,145.48,17.49885636]
[1750912499279,3.39828956,145.55,145.48,4.672]
[1750912499586,3.39828956,145.53,145.46,15.23755636]
[1750912499787,39.47273258,145.52,145.46,2.4107]
[1750912499985,34.7,145.52,145.46,2.4107]
[1750912500183,3.39981739,145.51,145.45,47.52685636]
[1750912500389,3.39981739,145.51,145.44,17.65535636]
[1750912500687,3.39981739,145.51,145.44,4.8285]
[1750912500891,6.8698,145.49,145.45,6.8711]
[1750912501095,3.39981739,145.51,145.44,4.8285]
[1750912501294,13.17453643,145.51,145.44,4.8285]
[1750912501497,34.7,145.52,145.44,21.05517375]
[1750912501694,34.7,145.52,145.46,3.39981739]
[1750912501894,9.77675496,145.58,145.5,3.39981739]
[1750912501895,9.77675496,145.57,145.5,3.39981739]
[1750912502097,5.00924073,145.57,145.5,3.39981739]
[1750912502797,11.87524073,145.57,145.52,6.8681]
[1750912502986,5.00924073,145.57,145.52,6.8681]
[1750912503601,6.8664,145.56,145.52,6.8681]
[1750912503795,6.8664,145.56,145.53,6.8676]
[1750912505203,11.64259911,145.56,145.52,6.868]
[1750912505497,6.8664,145.56,145.5,3.39981739]
[1750912505800,11.64259911,145.56,145.5,3.39981739]
[1750912505999,6.8664,145.56,145.5,3.39981739]
[1750912506198,11.64259911,145.56,145.5,3.39981739]
[1750912506399,6.8664,145.56,145.52,6.8679]
[1750912506699,11.88040324,145.56,145.52,6.8679]
[1750912507001,6.8664,145.56,145.52,6.8679]
[1750912507201,11.88040324,145.56,145.52,6.8679]
[1750912507397,6.8664,145.56,145.52,6.8679]
[1750912507597,11.64167562,145.56,145.52,6.8679]
[1750912507800,6.8664,145.56,145.52,6.8679]
[1750912508196,11.61267194,145.57,145.53,6.8674]
[1750912508601,16.61062372,145.57,145.53,6.8674]
[1750912509305,16.61060426,145.57,145.53,6.8674]
[1750912509602,6.8664,145.56,145.53,6.8674]
[1750912509797,4.99793232,145.57,145.53,6.8674]
[1750912510200,11.86393232,145.57,145.54,6.8672]
[1750912510390,16.61028285,145.57,145.54,6.8672]
[1750912510706,9.74428285,145.57,145.54,6.8672]
[1750912510902,15.26354257,145.58,145.54,6.8672]
[1750912511102,20.01082382,145.58,145.54,6.8672]
[1750912511297,15.26354257,145.58,145.54,6.8672]
[1750912512593,11.86372518,145.58,145.54,6.8672]
[1750912514311,6.8654,145.58,145.54,6.8672]
[1750912514713,16.63739529,145.57,145.54,6.8672]
[1750912514911,6.8658,145.57,145.53,6.8675]
[1750912516217,4.7659614,145.56,145.53,6.8675]
[1750912516420,6.8658,145.57,145.53,6.8675]
[1750912516619,4.76615944,145.56,145.53,6.8675]
[1750912516921,6.8663,145.56,145.52,6.868]
[1750912518114,6.8663,145.56,145.49,145.75847375]
[1750912518914,6.8663,145.56,145.51,8.54732882]
[1750912519115,6.8663,145.56,145.52,6.8678]
[1750912519411,6.8663,145.56,145.51,8.54732882]
[1750912520116,4.77090799,145.55,145.52,6.868]
[1750912520415,6.8663,145.56,145.52,6.868]
[1750912520615,4.77185254,145.55,145.52,6.868]
[1750912520819,6.8663,145.56,145.52,6.868]
[1750912521018,4.77158395,145.55,145.52,6.868]
[1750912521315,6.8668,145.55,145.52,6.868]
[1750912522118,41.5865,145.56,145.52,6.868]
[1750912522317,9.76357705,145.55,145.53,6.8675]
[1750912522509,41.5865,145.56,145.53,6.8675]
[1750912522705,9.76371045,145.55,145.53,6.8675]
[1750912522917,41.5865,145.56,145.53,6.8675]
[1750912523114,9.76384215,145.55,145.53,6.8675]
[1750912523319,34.72,145.56,145.53,6.8675]
[1750912523517,9.76415479,145.55,145.53,6.8675]
[1750912523815,34.72,145.56,145.53,6.8675]
[1750912524017,9.76415479,145.55,145.53,6.8675]
[1750912524217,34.72,145.56,145.53,6.8675]
[1750912524418,4.76796757,145.55,145.53,6.8675]
[1750912524615,34.72,145.56,145.53,6.8675]
[1750912524816,4.76830275,145.55,145.53,6.8675]
[1750912525017,41.5864,145.56,145.53,6.8675]
[1750912525216,4.76830275,145.55,145.53,6.8675]
[1750912525413,41.5864,145.56,145.53,6.8675]
[1750912525622,4.76840952,145.55,145.53,6.8675]
[1750912525825,41.5864,145.56,145.53,6.8675]
[1750912526116,4.76840952,145.55,145.53,6.8675]
[1750912526313,41.5864,145.56,145.53,6.8675]
[1750912526513,4.76844265,145.55,145.53,6.8675]
[1750912526709,41.5864,145.56,145.53,6.8675]
[1750912526913,4.76844265,145.55,145.53,6.8675]
[1750912527114,41.5864,145.56,145.53,6.8675]
[1750912527408,9.75623246,145.55,145.53,6.8675]
[1750912527728,34.72,145.56,145.51,8.54732882]
[1750912528024,4.76945183,145.55,145.51,11.94714621]
[1750912528222,34.72,145.56,145.54,6.8672]
[1750912528524,4.76948467,145.55,145.54,6.8672]
[1750912529118,4.98972077,145.58,145.53,11.94714621]
[1750912529320,9.76616637,145.57,145.53,11.94288706]
[1750912529522,41.5849,145.59,145.53,11.94288706]
[1750912529717,9.77354811,145.58,145.53,11.94288706]
[1750912530024,9.77357872,145.57,145.56,6.866]
[1750912530620,34.72,145.59,145.57,6.8657]
[1750912530820,9.78024233,145.58,145.57,6.8657]
[1750912531420,4.78089822,145.58,145.57,6.8657]
[1750912531620,9.78149019,145.58,145.57,6.8657]
[1750912532421,9.78264083,145.58,145.57,6.8657]
[1750912533225,4.78089822,145.58,145.57,6.8657]
[1750912534725,4.78089822,145.58,145.56,6.8661]
[1750912535027,34.72,145.59,145.56,6.8661]
[1750912535329,4.78382418,145.58,145.56,6.8661]
[1750912535830,41.585,145.59,145.55,6.8665]
[1750912536027,9.78608182,145.58,145.55,6.8665]
[1750912536227,41.585,145.59,145.55,6.8665]
[1750912536418,9.78589496,145.58,145.55,6.8665]
[1750912536718,41.585,145.59,145.56,6.8663]
[1750912536918,9.78589593,145.58,145.56,6.8663]
[1750912537226,41.585,145.59,145.56,6.8663]
[1750912537425,9.78567013,145.58,145.56,6.8663]
[1750912537722,41.585,145.59,145.56,6.8663]
[1750912537925,9.78567013,145.58,145.56,6.8663]
[1750912538230,41.585,145.59,145.56,6.8663]
[1750912538416,9.82209851,145.58,145.56,6.8663]
[1750912538613,41.585,145.59,145.56,6.8663]
[1750912538816,9.80752807,145.58,145.57,6.8658]
[1750912539121,4.78341176,145.58,145.57,6.8658]
[1750912539723,34.72,145.59,145.57,6.8658]
[1750912542834,34.72,145.59,145.56,6.8661]
[1750912543035,4.78011025,145.58,145.53,18.47109393]
[1750912543239,41.5851,145.59,145.53,130.64423757]
[1750912543425,4.78481036,145.58,145.53,130.64423757]
[1750912543733,6.8654,145.58,145.53,130.64423757]
[1750912543929,6.8654,145.58,145.54,6.8669]
[1750912544835,6.8654,145.58,145.55,6.8666]
[1750912545138,4.79272384,145.57,145.55,6.8666]
[1750912545335,6.8654,145.58,145.55,6.8666]
[1750912545538,4.79405259,145.57,145.55,6.8666]
[1750912545736,6.8654,145.58,145.55,6.8666]
[1750912545936,9.83803381,145.57,145.55,6.8666]
[1750912546133,6.8654,145.58,145.55,6.8666]
[1750912546327,9.84458576,145.57,145.55,6.8666]
[1750912546528,4.79925063,145.56,145.55,6.8666]
[1750912546832,41.585,145.59,145.55,6.8666]
[1750912547134,9.84667857,145.58,145.55,6.8666]
[1750912547334,9.84667857,145.57,145.55,6.8666]
[1750912547537,41.585,145.59,145.55,6.8666]
[1750912547735,9.84588458,145.58,145.55,6.8666]
[1750912547934,9.84588458,145.57,145.55,6.8666]
[1750912548137,41.585,145.59,145.55,6.8666]
[1750912548442,9.84056196,145.58,145.55,6.8666]
[1750912548638,9.84056196,145.57,145.55,6.8666]
[1750912548940,41.585,145.59,145.55,6.8666]
[1750912549140,9.83247752,145.58,145.55,6.8666]
[1750912549432,4.79164947,145.57,145.55,6.8666]
[1750912549638,41.585,145.59,145.53,5.64423757]
[1750912549840,9.82989742,145.58,145.53,5.64423757]
[1750912550028,34.72,145.59,145.53,5.64423757]
[1750912550225,9.83071126,145.58,145.53,5.64423757]
[1750912550428,38.11523757,145.62,145.55,3.39523757]
[1750912550633,9.83232596,145.61,145.59,6.8648]
[1750912550832,9.83232596,145.6,145.59,6.8648]
[1750912552128,34.72,145.62,145.59,6.8648]
[1750912552333,9.75777444,145.61,145.59,6.8648]
[1750912552642,34.72,145.62,145.59,6.8648]
[1750912552842,9.75820013,145.61,145.59,6.8648]
[1750912553039,4.8513,145.68,145.57,3.39523757]
[1750912553242,3.39523757,145.66,145.57,128.39523757]
[1750912553439,9.75928905,145.65,145.57,128.39523757]
[1750912553736,16.62208905,145.64,145.6,6.8641]
[1750912554040,9.75928905,145.63,145.6,6.8641]
[1750912554341,9.75928905,145.62,145.6,6.8641]
[1750912554641,6.8631,145.63,145.59,6.8648]
[1750912554942,9.77001173,145.62,145.57,125.0]
[1750912555147,9.76946654,145.61,145.55,175.94209393]
[1750912555337,6.8637,145.62,145.58,6.865]
[1750912555639,9.76838063,145.61,145.58,6.865]
[1750912555839,6.8637,145.62,145.58,6.865]
[1750912556139,9.76330784,145.61,145.58,6.865]
[1750912556342,6.8637,145.62,145.58,6.865]
[1750912556531,9.76084411,145.61,145.58,6.865]
[1750912556734,6.8637,145.62,145.59,6.8648]
[1750912556942,9.76152939,145.61,145.59,6.8648]
[1750912557141,6.8637,145.62,145.59,6.8648]
[1750912557342,5.04473627,145.61,145.59,6.8648]
[1750912557543,6.8637,145.62,145.59,6.8648]
[1750912557842,5.04417175,145.61,145.59,6.8648]
[1750912558040,34.72,145.63,145.56,3.39523757]
[1750912558342,34.72,145.63,145.58,3.39523757]
[1750912558738,6.8623,145.65,145.61,6.8636]
[1750912558939,9.75945718,145.64,145.58,3.39523757]
[1750912559135,9.75945718,145.63,145.58,3.39523757]
[1750912559332,6.8627,145.64,145.6,6.8642]
[1750912559639,9.75614096,145.63,145.58,3.39523757]
[1750912559835,6.8627,145.64,145.58,3.39523757]
[1750912560042,9.75697752,145.63,145.58,3.39523757]
[1750912560337,6.8627,145.64,145.58,3.39523757]
[1750912560534,9.75544295,145.63,145.61,6.8638]
[1750912560745,6.8627,145.64,145.58,3.39523757]
[1750912560939,9.75459381,145.63,145.58,3.39523757]
[1750912561134,38.11523757,145.66,145.58,3.39523757]
[1750912561135,6.8622,145.65,145.58,3.39523757]
[1750912561342,38.11523757,145.66,145.6,3.39523757]
[1750912561540,34.72,145.66,145.6,3.39523757]
[1750912561944,41.5817,145.66,145.6,3.39523757]
[1750912563549,34.72,145.66,145.62,3.39523757]
[1750912563945,41.5819,145.66,145.62,6.8633]
[1750912564349,46.28861836,145.66,145.62,6.8633]
[1750912565439,51.31982228,145.66,145.62,6.8633]
[1750912565644,13.13315985,145.65,145.59,129.6061]
[1750912565853,8.10195593,145.65,145.59,4.6061]
[1750912566142,3.39523757,145.65,145.59,4.6061]
[1750912566548,3.39523757,145.65,145.61,6.8636]
[1750912566749,34.72,145.66,145.6,3.39523757]
[1750912566950,34.72,145.66,145.62,3.39523757]
[1750912567345,44.40682559,145.69,145.62,3.39523757]
[1750912567542,9.76682559,145.68,145.62,3.39523757]
[1750912567746,9.76682559,145.67,145.65,6.8618]
[1750912568054,34.64,145.69,145.65,6.8618]
[1750912568358,9.78718677,145.68,145.65,6.8618]
[1750912568543,9.78718677,145.67,145.65,6.8618]
[1750912568741,4.72701664,145.68,145.65,6.8618]
[1750912568949,9.78641076,145.67,145.65,6.8618]
[1750912569162,41.5005,145.69,145.65,6.8618]
[1750912569448,9.78512797,145.68,145.66,6.8614]
[1750912569659,4.72459147,145.68,145.64,3.39523757]
[1750912569845,34.64,145.69,145.64,3.39523757]
[1750912570240,34.64,145.69,145.68,6.8606]
[1750912571760,34.64,145.69,145.67,6.8608]
[1750912572254,16.64557971,145.71,145.67,6.8608]
[1750912572459,11.91930985,145.71,145.68,6.8605]
[1750912572841,34.64,145.72,145.66,3.39523757]
[1750912573043,34.64,145.72,145.68,3.39523757]
[1750912573653,34.64,145.72,145.7,6.8594]
[1750912574155,34.64,145.72,145.68,3.39523757]
[1750912574156,5.0558255,145.74,145.71,6.8591]
[1750912574355,41.4975,145.75,145.71,6.8591]
[1750912574553,34.64,145.75,145.73,6.858]